Cogmind - Beta 10.2 @@@ ROGUE MODE // 2021.10.14 @ 14:11:50 Player: zapruda Result: Destroyed by P-70 Sage via exploding Fusion Modulator Performance ------------- Evolutions (3) 1500 Regions Visited (4) 800 Robots Destroyed (63) 315 Value Destroyed (1692) 1692 Prototype IDs (6) 120 Alien Tech Used (0) 0 Bonus (10) 10 TOTAL SCORE: 4437 Bonus ------- High Alert Combat Kills 10 Cogmind --------- Core Integrity 0/700 Matter 262/300 Energy 99/100 System Corruption 3% Temperature Cool (25) Movement Flying (40) Location -7/Factory Parts ------- > --- POWER (2) -------- (None) > --- PROPULSION (3) --- Gravmag System VTOL Module > --- UTILITY (6) ------ Improved Signal Interpreter Advanced Terrain Scan Processor Advanced Targeting Computer Target Analyzer Core Analyzer System Shield > --- WEAPON (2) ------- Heavy Assault Rifle > --- INVENTORY (4) ---- (None) Peak State ------------ > --- POWER ------------ Improved Ion Engine Light Nuclear Core > --- PROPULSION ------- Improved Carbon-fiber Leg Improved Flight Unit Improved Flight Unit > --- UTILITY ---------- Advanced Targeting Computer Advanced Targeting Computer Advanced Targeting Computer Core Analyzer Improved Propulsion Shielding Improved Light Armor Plating > --- WEAPON ----------- Gauss Rifle Gauss Rifle > --- INVENTORY -------- Improved Sensor Array Hacking Suite Proton Missile Launcher Katana [Rating: 43] Favorites ----------- Power Light Nuclear Core Engine Improved Ion Engine Power Core Light Nuclear Core Propulsion Improved Flight Unit Leg Aluminum Leg Wheel Armored Wheel Hover Unit Hover Unit Flight Unit Improved Flight Unit Utility Advanced Targeting Computer Device Weight Redist. System Storage Small Storage Unit Processor Advanced Targeting Computer Hackware Hacking Suite Protection Improved Propulsion Shielding Weapon Heavy Assault Rifle Energy Gun Medium Laser Ballistic Gun Heavy Assault Rifle Launcher Proton Missile Launcher Impact Weapon Powered Hammer Slashing Weapon Katana Build | -11 -10 -9 -8 -7 ------- Run | Scr Mat Mat Mat Fac Slots Evolved 6 | . . 2 2 2 Power 1 | . . . . 1 Propulsion 1 | . . . . 1 Utility 4 | . . 2 2 . Weapon . | . . . . . Parts Attached 87 | . 5 26 14 42 Power 11 | . . 3 1 7 Engine 7 | . . 1 1 5 Core 4 | . . 2 . 2 Reactor . | . . . . . Propulsion 20 | . 1 6 4 9 Treads . | . . . . . Leg 5 | . . 2 . 3 Wheel 4 | . . 2 . 2 Hover 2 | . 1 . . 1 Flight 9 | . . 2 4 3 Utility 27 | . 1 8 4 14 Device 5 | . 1 2 1 1 Storage . | . . . . . Processor 14 | . . 4 2 8 Hackware 3 | . . 1 . 2 Protection 5 | . . 1 1 3 Artifact . | . . . . . Weapon 29 | . 3 9 5 12 Energy Gun 7 | . 3 2 2 . Energy Cannon . | . . . . . Ballistic Gun 16 | . . 7 1 8 Ballistic Cannon . | . . . . . Launcher 1 | . . . 1 . Special Weapon . | . . . . . Impact Weapon 2 | . . . . 2 Slashing Weapon 3 | . . . 1 2 Piercing Weapon . | . . . . . Special Melee Weapon . | . . . . . Unidentified Prototypes 3 | . . 2 1 . Parts Lost 35 | . 5 10 1 19 Power 9 | . . 2 1 6 Propulsion 9 | . 1 4 . 4 Utility 8 | . . 3 . 5 Weapon 9 | . 4 1 . 4 Highest Loss Streak 12 | . 4 6 1 12 Average Slot Usage (%) 88 | . 80 83 95 90 Engine 5 | . 12 . 7 5 Core 4 | . . 6 . 4 Leg 5 | . 26 5 . 2 Wheel 2 | . . 4 . 2 Flight 11 | . . 6 18 14 Device 3 | . 1 11 8 . Storage 3 | . 14 7 . . Processor 24 | . . 14 41 30 Hackware 2 | . . 4 . 2 Protection 6 | . . 3 4 9 Energy Gun 2 | . 23 . . . Ballistic Gun 9 | . . 16 8 9 Slashing Weapon 2 | . . . 1 3 Naked Turns . | . . . . . Heaviest Build 27 | 12 14 18 18 27 Greatest Support 26 | 20 20 26 18 18 Greatest Overweight (x) 6 | . . 3 1 6 Average Overweight (x) . | . . . . . Largest Inventory Capacity 6 | . 6 6 4 4 Average Capacity 4 | . 6 5 4 4 Most Carried 6 | . 6 6 4 4 Average Carried 3 | . 5 3 3 3 Final Capacity 6 | 6 6 4 4 4 Final Carried 6 | 6 5 4 3 . Class Distribution -------------------- 64% | Mutant 20% | Sprinter 14% | Scavenger-Mutant Dominant Class ---------------- Mutant | -10/Materials Mutant | -9/Materials Sprinter | -8/Materials Mutant | -7/Factory Resources | -11 -10 -9 -8 -7 ----------- Run | Scr Mat Mat Mat Fac Matter Collected 1467 | 200 35 576 215 441 Remotely . | . . . . . Salvage Created 2399 | . 234 899 422 844 Parts 146 | . 13 61 27 45 Haulers Intercepted 6 | . . 2 3 1 Recyclers Shooed 3 | . 1 1 . 1 Parts Field Recycled . | . . . . . Retrieved Matter . | . . . . . Parts Self-Destructed . | . . . . . Prevented . | . . . . . Kills | -11 -10 -9 -8 -7 ------- Run | Scr Mat Mat Mat Fac Combat Hostiles Destroyed 41 | . 4 18 7 12 Melee 7 | . . . . 7 Guns 31 | . 4 18 5 4 AOE 2 | . . . 2 . Classes Destroyed 10 | . 3 6 . 1 Worker 3 | . . 1 . 2 Builder 3 | . 1 . . 2 Hauler 6 | . . 2 3 1 Recycler 4 | . . 1 . 3 Operator 3 | . 1 1 . 1 Watcher 3 | . . 2 . 1 Swarmer 11 | . . 3 2 6 Grunt 21 | . 4 11 3 3 Sentry 6 | . . 4 2 . Programmer 3 | . . . . 3 Best Kill Streak 7 | . 2 5 5 7 Combat Bots Only 5 | . 2 5 3 3 Max Kills in Single Turn 2 | . 1 1 2 1 Gunslinging . | . . . . . Exploded 2 | . . . 2 . Melee 1 | . . . . 1 Uniques/NPCs Destroyed . | . . . . . Combat | -11 -10 -9 -8 -7 -------- Run | Scr Mat Mat Mat Fac Damage Taken 4157 | . 558 1292 164 2143 Core 1286 | . 143 349 61 733 Absorbed by Shields . | . . . . . Core Remaining (%) 60 | 100 42 12 88 . Volleys Fired 114 | . 23 57 15 19 Largest 2 | . 2 2 2 2 Hottest 105 | . 105 56 78 56 Shots Fired 214 | . 45 106 26 37 Gun 212 | . 45 106 24 37 Cannon . | . . . . . Launcher 2 | . . . 2 . Special . | . . . . . Kinetic 160 | . . 100 23 37 Thermal 40 | . 33 6 1 . Explosive . | . . . . . Electromagnetic 14 | . 12 . 2 . Robot Hit Streak 12 | . 9 12 12 9 Robot Miss Streak 4 | . 3 4 2 2 Penetration Max . | . . . . . Secondary Targets 2 | . 1 1 . . Max Gunslinging Chain 1 | . 1 1 . . Shots Hit Robots 190 | . 30 79 19 62 Core Hits 104 | . 14 43 15 32 Critical Hits 4 | . . 3 . 1 Critical Kills 1 | . . 1 . . Critical Parts Destroyed 2 | . . 2 . . Melee Attacks 62 | . . . 5 57 Impact 17 | . . . . 17 Slashing 45 | . . . 5 40 Piercing . | . . . . . Sneak Attacks 6 | . . . 1 5 Combat Hostiles . | . . . . . Follow-up Attacks 7 | . . . . 7 Damage Inflicted 4345 | . 422 1287 697 1939 Guns 2469 | . 422 1287 272 488 Cannons . | . . . . . Explosions 323 | . . . 323 . Melee 1553 | . . . 102 1451 Ramming . | . . . . . Kinetic 1973 | . . 1229 256 488 Thermal 628 | . 279 58 291 . Explosive . | . . . . . Electromagnetic 191 | . 143 . 48 . Impact 530 | . . . . 530 Slashing 1023 | . . . 102 921 Piercing . | . . . . . Highest Corruption 3 | . . . . 3 Average Corruption 2 | . . . . 2 Corruption Purged . | . . . . . Effects 7 | . . . . 7 Message Errors 1 | . . . . 1 Matter Fused 2 | . . . . 2 Energy Discharges 2 | . . . . 2 Data Loss (minor) 1 | . . . . 1 Targeting Errors 1 | . . . . 1 Overload Shots . | . . . . . Overflow Damage 184 | . . . 106 78 Projectiles . | . . . . . Explosions 106 | . . . 106 . Melee 78 | . . . . 78 Knockbacks 2 | . . . . 2 Impact 1 | . . . . 1 Kinetic . | . . . . . Secondary 1 | . . . . 1 Self-Inflicted Damage . | . . . . . Shots . | . . . . . Rammed . | . . . . . Targets Rammed . | . . . . . Kicked . | . . . . . Crushed . | . . . . . Highest Temperature 303 | . 303 51 12 . Average Temperature 88 | . 135 15 5 . Received Heat Transfer 879 | . 276 426 63 114 Siege Activations . | . . . . . Robots Corrupted . | . . . . . Combat Hostiles . | . . . . . Parts Fried 1 | . . . . 1 Impact Corruptions 1 | . . . . 1 Robots Melted . | . . . . . Combat Hostiles . | . . . . . Parts Melted 1 | . 1 . . . Heat Transferred 1152 | . 767 148 237 . Parts Sabotaged . | . . . . . Parts Stolen . | . . . . . Parts Stripped . | . . . . . Power Chain Reactions . | . . . . . Missiles Intercepted . | . . . . . Alert | -11 -10 -9 -8 -7 ------- Run | Scr Mat Mat Mat Fac Peak Influence 547 | . 115 412 547 339 Initial 248 | . . 37 137 248 Average 189 | . 50 181 303 199 Maximum Alert Level 2 | . . 2 2 1 Low Security (%) 61 | . 100 52 34 62 Level 1 34 | . . 44 35 37 Level 2 3 | . . 3 30 . Level 3 . | . . . . . Level 4 . | . . . . . Level 5 . | . . . . . High Security . | . . . . . Max Security . | . . . . . Squads Dispatched 13 | . 2 2 1 8 Investigation 4 | . . 1 . 3 Extermination 3 | . . . . 3 Reinforcement 6 | . 2 1 1 2 Assault . | . . . . . Garrison . | . . . . . Intercept . | . . . . . Construction Impeded . | . . . . . Haulers Reinforced 1 | . . . . 1 Stealth | -11 -10 -9 -8 -7 --------- Run | Scr Mat Mat Mat Fac Distress Signals 7 | . 2 3 1 1 Communications Jammed . | . . . . . Distress Signals . | . . . . . Times Spotted 79 | . 12 27 15 25 Peak Tracking Total 7 | . 5 7 6 5 Tactical Retreats 6 | . 1 1 2 2 Traps | -11 -10 -9 -8 -7 ------- Run | Scr Mat Mat Mat Fac Traps Triggered 7 | . 1 1 . 5 Indirectly . | . . . . . Trap Hack Attempts . | . . . . . Triggered . | . . . . . Disarmed . | . . . . . Reprogrammed . | . . . . . Reused . | . . . . . Traps Extracted . | . . . . . Installed . | . . . . . Triggered . | . . . . . Machines | -11 -10 -9 -8 -7 ---------- Run | Scr Mat Mat Mat Fac Machines Disabled 4 | . . 1 3 . Max in Single Turn 2 | . . 1 2 . Machines Sabotaged . | . . . . . Garrisons Compromised . | . . . . . Overloaded Fab Kills . | . . . . . Fab Network Shutdowns . | . . . . . Hacking | -11 -10 -9 -8 -7 --------- Run | Scr Mat Mat Mat Fac Machines Accessed 9 | . . 4 . 5 Terminals 4 | . . 3 . 1 Fabricators 2 | . . . . 2 Repair Stations . | . . . . . Recycling Units . | . . . . . Scanalyzers 3 | . . 1 . 2 Garrison Access . | . . . . . Total Hacks 23 | . . 12 . 11 Successful 11 | . . 6 . 5 Failed 12 | . . 6 . 6 Catastrophic 4 | . . 2 . 2 Database Lockouts . | . . . . . Manual 3 | . . . . 3 Terminals 14 | . . 10 . 4 Fabricators 3 | . . . . 3 Repair Stations . | . . . . . Recycling Units . | . . . . . Scanalyzers 6 | . . 2 . 4 Garrison Access . | . . . . . Terminal Hacks 5 | . . 4 . 1 Record 2 | . . 2 . . Prototype ID Bank 2 | . . 2 . . Level Access Points 1 | . . . . 1 Fabricator Hacks 2 | . . . . 2 Build 2 | . . . . 2 Repair Station Hacks . | . . . . . Recycling Unit Hacks . | . . . . . Scanalyzer 4 | . . 2 . 2 Insert Component 2 | . . 1 . 1 Analyze 2 | . . 1 . 1 Garrison Access Hacks . | . . . . . Unauthorized Hacks . | . . . . . Terminals . | . . . . . Fabricators . | . . . . . Repair Stations . | . . . . . Recycling Units . | . . . . . Scanalyzers . | . . . . . Garrison Access . | . . . . . Data Cores Recovered 2 | . . 1 . 1 Used 2 | . . 1 . 1 Hacking Detections 8 | . . 4 . 4 Full Trace Events 2 | . . . . 2 Feedback Events . | . . . . . Feedback Blocked . | . . . . . Robot Schematics Acquired . | . . . . . Robots Built . | . . . . . Matter 252 | . . . . 252 Time 67 | . . . . 67 Total Robot Build Rating . | . . . . . Part Schematics Acquired 2 | . . 1 . 1 Parts Built . | . . . . . Matter 234 | . . . . 234 Time 117 | . . . . 117 Total Part Build Rating . | . . . . . Parts Repaired . | . . . . . Time . | . . . . . Parts Recycled . | . . . . . Recycled Matter . | . . . . . Retrieved Matter . | . . . . . Retrieved Components . | . . . . . Parts Scanalyzed 2 | . . 1 . 1 Part Schematics Acquired 2 | . . 1 . 1 Parts Damaged . | . . . . . Bothacking | -11 -10 -9 -8 -7 ------------ Run | Scr Mat Mat Mat Fac Used RIF Installer . | . . . . . Robots Hacked . | . . . . . Non-combat . | . . . . . Combat . | . . . . . Robot Hacks Applied . | . . . . . Relay Couplers Released . | . . . . . Robots Rewired . | . . . . . Allies Hacked . | . . . . . Hacks Repelled . | . . . . . Allies | -11 -10 -9 -8 -7 -------- Run | Scr Mat Mat Mat Fac Total Allies . | . . . . . Largest Group . | . . . . . Highest-Rated Group . | . . . . . Highest-Rated Ally . | . . . . . Total Orders . | . . . . . Ally Attacks . | . . . . . Total Damage . | . . . . . Kills . | . . . . . Allies Corrupted . | . . . . . Allies Melted . | . . . . . Intel | -11 -10 -9 -8 -7 ------- Run | Scr Mat Mat Mat Fac Robot Analysis Total . | . . . . . Derelict Logs Recovered . | . . . . . Drone Launches . | . . . . . Drone Recoveries . | . . . . . Exploration | -11 -10 -9 -8 -7 ------------- Run | Scr Mat Mat Mat Fac Turns Passed 2192 | . 242 462 210 1278 Spaces Moved 2007 | 1 147 382 368 1109 Core 31 | . . 24 . 7 Treads . | . . . . . Legs 398 | 1 120 34 . 243 Wheels 436 | . . 65 . 371 Hover 105 | . 27 78 . . Flight 1037 | . . 181 368 488 Fastest Speed 30 | 120 70 32 32 30 Average Speed 73 | 120 110 60 32 86 Slowest Speed 350 | 120 120 200 105 350 Overloaded Moves . | . . . . . Propulsion Burnouts . | . . . . . Robots Hopped 1 | . . . 1 . Cave-ins Triggered . | . . . . . Exploration Rate (%) 29 | 2 41 36 34 35 Regions Visited 4 Branch Regions . Pre-discovered Areas . | . . . . . Known Exits Taken 2 | . . 1 1 . Unknown Exits Taken 2 | 1 1 . . . Scrap Searched . | . . . . . Spaces Dug 1 | . . . . 1 Terrain Destroyed 34 | . . . 33 1 Melee 1 | . . . . 1 Projectile . | . . . . . AOE 33 | . . . 33 . Terrain Rammed . | . . . . . Walls Destroyed . | . . . . . Machines Disabled . | . . . . . Actions | -11 -10 -9 -8 -7 --------- Run | Scr Mat Mat Mat Fac Total 2427 | . 181 503 425 1318 Wait 87 | . . 10 8 69 Move 2001 | . 146 381 365 1109 Hop 1 | . . . 1 . Pick Up 48 | . 3 18 6 21 Fast Attach 32 | . 2 9 5 16 Attach 38 | . 2 12 5 19 Detach 2 | . . . 2 . Swap 17 | . 1 5 4 7 Drop 35 | . 4 11 9 11 Fire 114 | . 23 57 15 19 Melee 52 | . . . 5 47 Ram . | . . . . . Kick . | . . . . . Crush . | . . . . . Escape Stasis . | . . . . . Rewire . | . . . . . Trap . | . . . . . Miscellaneous . | . . . . . Route ------- -11/Scrapyard -10/Materials (discovered 2 exits: *Mat x2) -9/Materials -8/Materials -7/Factory (discovered 4 exits: *Fac x4) History --------- Turn | Location | Event 1 | -11/Scrapyard | Discovered new exit (range 0) 1 | -11/Scrapyard | Entered Materials 70 | -10/Materials | Discovered new exit (range 9) 236 | -10/Materials | Core integrity fell below 50% 237 | -10/Materials | Discovered new exit (range 8) 243 | -10/Materials | Entered another Materials area 243 | -9/Materials | Evolved 2 slots: Utility x2 252 | -9/Materials | Lost 4 parts (1n3w) 364 | -9/Materials | Lost 6 parts (2p2n1u1w) 429 | -9/Materials | Core integrity fell below 50% 464 | -9/Materials | Lost 3 parts (2n1u) 642 | -9/Materials | Core integrity fell below 20% 663 | -9/Materials | Discovered new exit (range 16) 671 | -9/Materials | Identified exit to Materials 705 | -9/Materials | Entered another Materials area 705 | -8/Materials | Evolved 2 slots: Utility x2 849 | -8/Materials | Build established: Sprinter 894 | -8/Materials | Discovered new exit (range 16) 913 | -8/Materials | Identified exit to Factory 915 | -8/Materials | Entered Factory 915 | -7/Factory | Evolved 2 slots: Power x1, Propulsion x1 1199 | -7/Factory | Discovered new exit (range 4) 1614 | -7/Factory | Build established: Mutant 1872 | -7/Factory | Lost 3 parts (2p1u) 2065 | -7/Factory | Core integrity fell below 50% 2085 | -7/Factory | Core integrity fell below 20% 2121 | -7/Factory | Lost 12 parts (3p4n2u3w) 2123 | -7/Factory | Identified exit to Factory 2193 | -7/Factory | Destroyed by P-70 Sage via exploding Fusion Modulator Last Messages --------------- (52,99) (128,136) Map updated. 02123_ Connecting with Terminal... 02123_ ALERT: Suspicious activity at Terminal F015. Dispatching Investigation squad. 02127_ Acquired System Shield. 02127_ K-01 Serf collects debris. 02132_ U-05 Engineer lays Concrete. 02133_ Acquired Adv. Terrain Scan Processor. 02138_ Acquired Gravmag System. 02165_ ALERT: Rogue bot located, Programmers report to Factory Zone 5M. 02181_ Connecting with Fabricator... >>Build Building L-41 Fighter... ETC: 67 02193_ Fusion Modulator explodes. 02193_ Fabricator disabled. 02193_ K-01 Serf destroyed. 02193_ Fusion Modulator explodes. Map ----- +----------------------------------------------------+ | ?????????????????? #?????????????? | | ???????????????????? """" """" #?????????????? | | ??????????????????????""" """" #?????????????? | | ?????????????????????"""" """" #?????????????? | | ??????????????????? #?????????????? | | ?????????????????????"""" """" #?????????? ?? | | ????????????????????????? """" #???????? ?? | | ?????????????????????"""" """" #?????? #? | | ??????????????????? #???? #? | | ???????????????????"?"""" """" #?? #? | | ??????????????????"" """" """" # ???? | | ?????????????????""" """" """" + """ "??????? | | ???????????????? # """ "??????? | | ???????????????? k #??""" "??????? | | ????????????????????###p ##????" ??????? | | ????????????????????### #??????????????? | | ????????????????????# ;t " #??????????????? | | ????????????????????# ; #??????????????? | | ????????????????????# ;!= ###????????????? | | ???????????????????## ;= #????????????? | | ??????????????????##;;; #????????????? | | ??????????????????# #????????????? | | ??????????????????+ #????????????? | | ??????????????????# #????????????? | | ??????????????????### #????????????? | | ????????????????????# @ #????????????? | | ????????????????????# ###;;;;;;;;;###????????????? | | ??????????????????? ???###??;#??????????????????? | | ??????????????????#??????????????????????????????? | | ?????????????????????????????????????????????????? | | ?????????????????????????????????????????????????? | | ?????????????????????????????????????????????????? | | ?????????????????????????????????????????????????? | | ?????????????????????????????????????????????????? | | ?????????????????????????????????????????????????? | | ?????????????????????????????????????????????????? | | ?????????????????????????????????????????????????? | | ?????????????????????????????????????????????????? | | ?????????????????????????????????????????????????? | | ?????????????????????????????????????????????????? | | ?????????????????????????????????????????????????? | | ?????????????????????????????????????????????????? | | ?????????????????????????????????????????????????? | | ?????????????????????????????????????????????????? | | ?????????????????????????????????????????????????? | | ?????????????????????????????????????????????????? | | ?????????????????????????????????????????????????? | | ?????????????????????????????????????????????????? | | ?????????????????????????????????????????????????? | | ?????????????????????????????????????????????????? | +----------------------------------------------------+ Best States ------------- Heat Dissipation 42 Energy Generation 27 Energy Capacity 325 Matter Stores 300 Matter Capacity 300 Sight Range 16 Robot Scan Range 13 Terrain Scan Density 210 Additional Mass Support 6 Armor Coverage 150 Propulsion Shielding 66 Evasion (%) 63 Targeting Accuracy 24 Target Analysis 5 Core Analysis 6 Offensive Hacking 10 Defensive Hacking 10 Item Schematics ----------------- Imp. Flight Unit | -9/Materials | Scanalyzed Powered Hammer | -7/Factory | Scanalyzed Robot Schematics ------------------ None Fabricated ------------ Nothing Alien Tech Used ----------------- None Achievements -------------- None Challenges ------------ None Game ------ Seed HackingOverloadLog Manual? 0 Play Time 00:31:08 Cumulative 66.5 hours Start 2021.10.14 @ 13:48:17 End 2021.10.14 @ 14:11:50 Sessions 1 Manual Loads 0 Difficulty Rogue Special Mode None Game No. 100 Rogue 100 Adventurer 0 Explorer 0 Win Type - Total 0 Types 0/0/0/0/0/0/0/0/0 Lore% 29 Gallery% 51 Achievement% 34 Wizard Run 0 Options --------- ASCII 0 Keyboard 0 Movement Mouse Keybinds 0 Fullscreen 1 Font 18/SmallcapsGlow Map View 76x50 Tactical HUD 1 Map Filters NONE Filters NONE Steam 1 RUN: c0a6eac1-ca56-4a44-b175-38f3722bde72